{"text_format":"3","workbook":"xlsx","n_sheets":5,"sheets":["Faktúra","Zákazníci","Faktúry – hlavné","Fakturačné údaje","Informácie o evidencii faktúr"],"not_rendered":{"defined_names":8},"read":"whole","date_system":"1900"}

{"sheet":"Faktúra","index":0,"n_rows":39,"n_cols":7,"rows_kept":39,"merged":[[1,1,1,2],[1,3,1,4],[1,5,1,6],[2,1,2,2],[2,3,2,4],[2,5,2,6],[3,3,3,4],[4,3,4,4],[5,3,5,4],[37,1,37,4],[38,1,38,4]]}
[null,"Názov spoločnosti"]
[null,"Ulica",null,"TEL.: Telefónne číslo",null,"E-mail"]
[null,"PSČ, mesto",null,"FAX: Číslo faxu",null,"Webová lokalita"]
[null,"Odberateľ:",{"$f":"IFERROR(VLOOKUP(VLOOKUP(Chýbajúca_faktúra,FaktúryHlavné[],2,FALSE),ZoznamZákazníkov[],3,TRUE),\"\")","v":"Contoso, Ltd"},{"$f":"\"Telefón: \"&IFERROR(VLOOKUP(VLOOKUP(Chýbajúca_faktúra,FaktúryHlavné[],2,FALSE),ZoznamZákazníkov[],9,FALSE),\"\")","v":"Telefón: 432-555-0189"},null,"Faktúra č.:","3-456-2"]
[null,"Adresa:",{"$f":"IFERROR(IF((VLOOKUP(VLOOKUP(Chýbajúca_faktúra,FaktúryHlavné[],2,FALSE),ZoznamZákazníkov[],5,FALSE))=\"\",\"\",(VLOOKUP(VLOOKUP(Chýbajúca_faktúra,FaktúryHlavné[],2,FALSE),ZoznamZákazníkov[],5,FALSE))),\"\")","v":"Orechová 254"},{"$f":"\"Fax:     \"&IFERROR(VLOOKUP(VLOOKUP(Chýbajúca_faktúra,FaktúryHlavné[],2,FALSE),ZoznamZákazníkov[],11,FALSE),\"\")","v":"Fax:     432-555-0123"},null,"Dátum vystavenia faktúry:",{"$f":"IFERROR(IF(VLOOKUP(Chýbajúca_faktúra,FaktúryHlavné[],3,FALSE)=\"\",\"\",VLOOKUP(Chýbajúca_faktúra,FaktúryHlavné[],3,FALSE)),\"\")","v":"2019-08-08"}]
[null,null,{"$f":"IFERROR(VLOOKUP(VLOOKUP(Chýbajúca faktúra,FaktúryHlavné[],2,FALSE),ZoznamZákazníkov[],6,FALSE)&\", \"& VLOOKUP(VLOOKUP(G4,FaktúryHlavné[],2,FALSE),ZoznamZákazníkov[],7,FALSE)&\" \"&VLOOKUP(VLOOKUP(G4,FaktúryHlavné[],2,FALSE),ZoznamZákazníkov[],8,FALSE),\"\")","v":""},{"$f":"\"E-mail: \"&IFERROR(VLOOKUP(VLOOKUP(Chýbajúca_faktúra,FaktúryHlavné[],2,FALSE),ZoznamZákazníkov[],10,FALSE),\"\")","v":"E-mail: meno@example.com"}]
[null,{"$f":"\"Faktúra pre: \"&IFERROR(VLOOKUP(Chýbajúca_faktúra,FaktúryHlavné[],4),\"\")","v":"Faktúra pre: Projekt 2"}]
[null,"Č. položky","Popis","Množstvo","Jednotková cena","Zľava","Cena"]
[null,{"$f":"IFERROR(INDEX(PodrobnostiFaktúry[],SMALL(IF(PodrobnostiFaktúry[Faktúra č.]=Chýbajúca_faktúra,ROW(PodrobnostiFaktúry[])-ROW(PodrobnostiFaktúry[#Headers])), ROW(1:1)), MATCH($B$8, PodrobnostiFaktúry[#Headers], 0)),\"\")","v":"Z4567"},{"$f":"IFERROR(INDEX(PodrobnostiFaktúry[],SMALL(IF(PodrobnostiFaktúry[Faktúra č.]=Chýbajúca_faktúra,ROW(PodrobnostiFaktúry[])-ROW(PodrobnostiFaktúry[#Headers])), ROW(1:1)), MATCH($C$8, PodrobnostiFaktúry[#Headers], 0)),\"\")","v":"Faktúra 3-456-2 – údaje 1"},{"$f":"IFERROR(INDEX(PodrobnostiFaktúry[],SMALL(IF(PodrobnostiFaktúry[Faktúra č.]=Chýbajúca_faktúra,ROW(PodrobnostiFaktúry[])-ROW(PodrobnostiFaktúry[#Headers])), ROW(1:1)), MATCH($D$8, PodrobnostiFaktúry[#Headers], 0)),\"\")","v":39},{"$f":"IFERROR(INDEX(PodrobnostiFaktúry[],SMALL(IF(PodrobnostiFaktúry[Faktúra č.]=Chýbajúca_faktúra,ROW(PodrobnostiFaktúry[])-ROW(PodrobnostiFaktúry[#Headers])), ROW(1:1)), MATCH($E$8, PodrobnostiFaktúry[#Headers], 0)),\"\")","v":{"v":5,"d":"5.00 EUR"}},{"$f":"IFERROR(INDEX(PodrobnostiFaktúry[],SMALL(IF(PodrobnostiFaktúry[Faktúra č.]=Chýbajúca_faktúra,ROW(PodrobnostiFaktúry[])-ROW(PodrobnostiFaktúry[#Headers])), ROW(1:1)), MATCH($F$8, PodrobnostiFaktúry[#Headers], 0)),\"\")","v":0},{"$f":"IFERROR((D9*E9)-F9,\"\")","v":{"v":195,"d":"195.00 EUR"}}]
[null,{"$f":"IFERROR(INDEX(PodrobnostiFaktúry[],SMALL(IF(PodrobnostiFaktúry[Faktúra č.]=Chýbajúca_faktúra,ROW(PodrobnostiFaktúry[])-ROW(PodrobnostiFaktúry[#Headers])), ROW(2:2)), MATCH($B$8, PodrobnostiFaktúry[#Headers], 0)),\"\")","v":"Z4568"},{"$f":"IFERROR(INDEX(PodrobnostiFaktúry[],SMALL(IF(PodrobnostiFaktúry[Faktúra č.]=Chýbajúca_faktúra,ROW(PodrobnostiFaktúry[])-ROW(PodrobnostiFaktúry[#Headers])), ROW(2:2)), MATCH($C$8, PodrobnostiFaktúry[#Headers], 0)),\"\")","v":"Faktúra 3-456-2 – údaje 2"},{"$f":"IFERROR(INDEX(PodrobnostiFaktúry[],SMALL(IF(PodrobnostiFaktúry[Faktúra č.]=Chýbajúca_faktúra,ROW(PodrobnostiFaktúry[])-ROW(PodrobnostiFaktúry[#Headers])), ROW(2:2)), MATCH($D$8, PodrobnostiFaktúry[#Headers], 0)),\"\")","v":40},{"$f":"IFERROR(INDEX(PodrobnostiFaktúry[],SMALL(IF(PodrobnostiFaktúry[Faktúra č.]=Chýbajúca_faktúra,ROW(PodrobnostiFaktúry[])-ROW(PodrobnostiFaktúry[#Headers])), ROW(2:2)), MATCH($E$8, PodrobnostiFaktúry[#Headers], 0)),\"\")","v":{"v":4,"d":"4.00 EUR"}},{"$f":"IFERROR(INDEX(PodrobnostiFaktúry[],SMALL(IF(PodrobnostiFaktúry[Faktúra č.]=Chýbajúca_faktúra,ROW(PodrobnostiFaktúry[])-ROW(PodrobnostiFaktúry[#Headers])), ROW(2:2)), MATCH($F$8, PodrobnostiFaktúry[#Headers], 0)),\"\")","v":{"v":5,"d":"5.00 EUR"}},{"v":155,"d":"155.00 EUR"}]
[null,{"$f":"IFERROR(INDEX(PodrobnostiFaktúry[],SMALL(IF(PodrobnostiFaktúry[Faktúra č.]=Chýbajúca_faktúra,ROW(PodrobnostiFaktúry[])-ROW(PodrobnostiFaktúry[#Headers])), ROW(3:3)), MATCH($B$8, PodrobnostiFaktúry[#Headers], 0)),\"\")","v":"Z4569"},{"$f":"IFERROR(INDEX(PodrobnostiFaktúry[],SMALL(IF(PodrobnostiFaktúry[Faktúra č.]=Chýbajúca_faktúra,ROW(PodrobnostiFaktúry[])-ROW(PodrobnostiFaktúry[#Headers])), ROW(3:3)), MATCH($C$8, PodrobnostiFaktúry[#Headers], 0)),\"\")","v":"Faktúra 3-456-2 – údaje 3"},{"$f":"IFERROR(INDEX(PodrobnostiFaktúry[],SMALL(IF(PodrobnostiFaktúry[Faktúra č.]=Chýbajúca_faktúra,ROW(PodrobnostiFaktúry[])-ROW(PodrobnostiFaktúry[#Headers])), ROW(3:3)), MATCH($D$8, PodrobnostiFaktúry[#Headers], 0)),\"\")","v":30},{"$f":"IFERROR(INDEX(PodrobnostiFaktúry[],SMALL(IF(PodrobnostiFaktúry[Faktúra č.]=Chýbajúca_faktúra,ROW(PodrobnostiFaktúry[])-ROW(PodrobnostiFaktúry[#Headers])), ROW(3:3)), MATCH($E$8, PodrobnostiFaktúry[#Headers], 0)),\"\")","v":{"v":6,"d":"6.00 EUR"}},{"$f":"IFERROR(INDEX(PodrobnostiFaktúry[],SMALL(IF(PodrobnostiFaktúry[Faktúra č.]=Chýbajúca_faktúra,ROW(PodrobnostiFaktúry[])-ROW(PodrobnostiFaktúry[#Headers])), ROW(3:3)), MATCH($F$8, PodrobnostiFaktúry[#Headers], 0)),\"\")","v":{"v":7,"d":"7.00 EUR"}},{"v":173,"d":"173.00 EUR"}]
[null,{"$f":"IFERROR(INDEX(PodrobnostiFaktúry[],SMALL(IF(PodrobnostiFaktúry[Faktúra č.]=Chýbajúca_faktúra,ROW(PodrobnostiFaktúry[])-ROW(PodrobnostiFaktúry[#Headers])), ROW(4:4)), MATCH($B$8, PodrobnostiFaktúry[#Headers], 0)),\"\")","v":"Z4570"},{"$f":"IFERROR(INDEX(PodrobnostiFaktúry[],SMALL(IF(PodrobnostiFaktúry[Faktúra č.]=Chýbajúca_faktúra,ROW(PodrobnostiFaktúry[])-ROW(PodrobnostiFaktúry[#Headers])), ROW(4:4)), MATCH($C$8, PodrobnostiFaktúry[#Headers], 0)),\"\")","v":"Faktúra 3-456-2 – údaje 4"},{"$f":"IFERROR(INDEX(PodrobnostiFaktúry[],SMALL(IF(PodrobnostiFaktúry[Faktúra č.]=Chýbajúca_faktúra,ROW(PodrobnostiFaktúry[])-ROW(PodrobnostiFaktúry[#Headers])), ROW(4:4)), MATCH($D$8, PodrobnostiFaktúry[#Headers], 0)),\"\")","v":40},{"$f":"IFERROR(INDEX(PodrobnostiFaktúry[],SMALL(IF(PodrobnostiFaktúry[Faktúra č.]=Chýbajúca_faktúra,ROW(PodrobnostiFaktúry[])-ROW(PodrobnostiFaktúry[#Headers])), ROW(4:4)), MATCH($E$8, PodrobnostiFaktúry[#Headers], 0)),\"\")","v":{"v":7,"d":"7.00 EUR"}},{"$f":"IFERROR(INDEX(PodrobnostiFaktúry[],SMALL(IF(PodrobnostiFaktúry[Faktúra č.]=Chýbajúca_faktúra,ROW(PodrobnostiFaktúry[])-ROW(PodrobnostiFaktúry[#Headers])), ROW(4:4)), MATCH($F$8, PodrobnostiFaktúry[#Headers], 0)),\"\")","v":0},{"v":280,"d":"280.00 EUR"}]
[null,{"$f":"IFERROR(INDEX(PodrobnostiFaktúry[],SMALL(IF(PodrobnostiFaktúry[Faktúra č.]=Chýbajúca_faktúra,ROW(PodrobnostiFaktúry[])-ROW(PodrobnostiFaktúry[#Headers])), ROW(5:5)), MATCH($B$8, PodrobnostiFaktúry[#Headers], 0)),\"\")","v":"Z4571"},{"$f":"IFERROR(INDEX(PodrobnostiFaktúry[],SMALL(IF(PodrobnostiFaktúry[Faktúra č.]=Chýbajúca_faktúra,ROW(PodrobnostiFaktúry[])-ROW(PodrobnostiFaktúry[#Headers])), ROW(5:5)), MATCH($C$8, PodrobnostiFaktúry[#Headers], 0)),\"\")","v":"Faktúra 3-456-2 – údaje 5"},{"$f":"IFERROR(INDEX(PodrobnostiFaktúry[],SMALL(IF(PodrobnostiFaktúry[Faktúra č.]=Chýbajúca_faktúra,ROW(PodrobnostiFaktúry[])-ROW(PodrobnostiFaktúry[#Headers])), ROW(5:5)), MATCH($D$8, PodrobnostiFaktúry[#Headers], 0)),\"\")","v":10},{"$f":"IFERROR(INDEX(PodrobnostiFaktúry[],SMALL(IF(PodrobnostiFaktúry[Faktúra č.]=Chýbajúca_faktúra,ROW(PodrobnostiFaktúry[])-ROW(PodrobnostiFaktúry[#Headers])), ROW(5:5)), MATCH($E$8, PodrobnostiFaktúry[#Headers], 0)),\"\")","v":{"v":4,"d":"4.00 EUR"}},{"$f":"IFERROR(INDEX(PodrobnostiFaktúry[],SMALL(IF(PodrobnostiFaktúry[Faktúra č.]=Chýbajúca_faktúra,ROW(PodrobnostiFaktúry[])-ROW(PodrobnostiFaktúry[#Headers])), ROW(5:5)), MATCH($F$8, PodrobnostiFaktúry[#Headers], 0)),\"\")","v":0},{"v":40,"d":"40.00 EUR"}]
[null,{"$f":"IFERROR(INDEX(PodrobnostiFaktúry[],SMALL(IF(PodrobnostiFaktúry[Faktúra č.]=Chýbajúca_faktúra,ROW(PodrobnostiFaktúry[])-ROW(PodrobnostiFaktúry[#Headers])), ROW(6:6)), MATCH($B$8, PodrobnostiFaktúry[#Headers], 0)),\"\")","v":"Z4572"},{"$f":"IFERROR(INDEX(PodrobnostiFaktúry[],SMALL(IF(PodrobnostiFaktúry[Faktúra č.]=Chýbajúca_faktúra,ROW(PodrobnostiFaktúry[])-ROW(PodrobnostiFaktúry[#Headers])), ROW(6:6)), MATCH($C$8, PodrobnostiFaktúry[#Headers], 0)),\"\")","v":"Faktúra 3-456-2 – údaje 6"},{"$f":"IFERROR(INDEX(PodrobnostiFaktúry[],SMALL(IF(PodrobnostiFaktúry[Faktúra č.]=Chýbajúca_faktúra,ROW(PodrobnostiFaktúry[])-ROW(PodrobnostiFaktúry[#Headers])), ROW(6:6)), MATCH($D$8, PodrobnostiFaktúry[#Headers], 0)),\"\")","v":5},{"$f":"IFERROR(INDEX(PodrobnostiFaktúry[],SMALL(IF(PodrobnostiFaktúry[Faktúra č.]=Chýbajúca_faktúra,ROW(PodrobnostiFaktúry[])-ROW(PodrobnostiFaktúry[#Headers])), ROW(6:6)), MATCH($E$8, PodrobnostiFaktúry[#Headers], 0)),\"\")","v":{"v":8,"d":"8.00 EUR"}},{"$f":"IFERROR(INDEX(PodrobnostiFaktúry[],SMALL(IF(PodrobnostiFaktúry[Faktúra č.]=Chýbajúca_faktúra,ROW(PodrobnostiFaktúry[])-ROW(PodrobnostiFaktúry[#Headers])), ROW(6:6)), MATCH($F$8, PodrobnostiFaktúry[#Headers], 0)),\"\")","v":0},{"v":40,"d":"40.00 EUR"}]
[null,{"$f":"IFERROR(INDEX(PodrobnostiFaktúry[],SMALL(IF(PodrobnostiFaktúry[Faktúra č.]=Chýbajúca_faktúra,ROW(PodrobnostiFaktúry[])-ROW(PodrobnostiFaktúry[#Headers])), ROW(7:7)), MATCH($B$8, PodrobnostiFaktúry[#Headers], 0)),\"\")","v":"Z4573"},{"$f":"IFERROR(INDEX(PodrobnostiFaktúry[],SMALL(IF(PodrobnostiFaktúry[Faktúra č.]=Chýbajúca_faktúra,ROW(PodrobnostiFaktúry[])-ROW(PodrobnostiFaktúry[#Headers])), ROW(7:7)), MATCH($C$8, PodrobnostiFaktúry[#Headers], 0)),\"\")","v":"Faktúra 3-456-2 – údaje 7"},{"$f":"IFERROR(INDEX(PodrobnostiFaktúry[],SMALL(IF(PodrobnostiFaktúry[Faktúra č.]=Chýbajúca_faktúra,ROW(PodrobnostiFaktúry[])-ROW(PodrobnostiFaktúry[#Headers])), ROW(7:7)), MATCH($D$8, PodrobnostiFaktúry[#Headers], 0)),\"\")","v":70},{"$f":"IFERROR(INDEX(PodrobnostiFaktúry[],SMALL(IF(PodrobnostiFaktúry[Faktúra č.]=Chýbajúca_faktúra,ROW(PodrobnostiFaktúry[])-ROW(PodrobnostiFaktúry[#Headers])), ROW(7:7)), MATCH($E$8, PodrobnostiFaktúry[#Headers], 0)),\"\")","v":{"v":6,"d":"6.00 EUR"}},{"$f":"IFERROR(INDEX(PodrobnostiFaktúry[],SMALL(IF(PodrobnostiFaktúry[Faktúra č.]=Chýbajúca_faktúra,ROW(PodrobnostiFaktúry[])-ROW(PodrobnostiFaktúry[#Headers])), ROW(7:7)), MATCH($F$8, PodrobnostiFaktúry[#Headers], 0)),\"\")","v":0},{"v":420,"d":"420.00 EUR"}]
[null,{"$f":"IFERROR(INDEX(PodrobnostiFaktúry[],SMALL(IF(PodrobnostiFaktúry[Faktúra č.]=Chýbajúca_faktúra,ROW(PodrobnostiFaktúry[])-ROW(PodrobnostiFaktúry[#Headers])), ROW(8:8)), MATCH($B$8, PodrobnostiFaktúry[#Headers], 0)),\"\")","v":"Z4574"},{"$f":"IFERROR(INDEX(PodrobnostiFaktúry[],SMALL(IF(PodrobnostiFaktúry[Faktúra č.]=Chýbajúca_faktúra,ROW(PodrobnostiFaktúry[])-ROW(PodrobnostiFaktúry[#Headers])), ROW(8:8)), MATCH($C$8, PodrobnostiFaktúry[#Headers], 0)),\"\")","v":"Faktúra 3-456-2 – údaje 8"},{"$f":"IFERROR(INDEX(PodrobnostiFaktúry[],SMALL(IF(PodrobnostiFaktúry[Faktúra č.]=Chýbajúca_faktúra,ROW(PodrobnostiFaktúry[])-ROW(PodrobnostiFaktúry[#Headers])), ROW(8:8)), MATCH($D$8, PodrobnostiFaktúry[#Headers], 0)),\"\")","v":25},{"$f":"IFERROR(INDEX(PodrobnostiFaktúry[],SMALL(IF(PodrobnostiFaktúry[Faktúra č.]=Chýbajúca_faktúra,ROW(PodrobnostiFaktúry[])-ROW(PodrobnostiFaktúry[#Headers])), ROW(8:8)), MATCH($E$8, PodrobnostiFaktúry[#Headers], 0)),\"\")","v":{"v":4,"d":"4.00 EUR"}},{"$f":"IFERROR(INDEX(PodrobnostiFaktúry[],SMALL(IF(PodrobnostiFaktúry[Faktúra č.]=Chýbajúca_faktúra,ROW(PodrobnostiFaktúry[])-ROW(PodrobnostiFaktúry[#Headers])), ROW(8:8)), MATCH($F$8, PodrobnostiFaktúry[#Headers], 0)),\"\")","v":0},{"v":100,"d":"100.00 EUR"}]
[null,{"$f":"IFERROR(INDEX(PodrobnostiFaktúry[],SMALL(IF(PodrobnostiFaktúry[Faktúra č.]=Chýbajúca_faktúra,ROW(PodrobnostiFaktúry[])-ROW(PodrobnostiFaktúry[#Headers])), ROW(9:9)), MATCH($B$8, PodrobnostiFaktúry[#Headers], 0)),\"\")","v":"Z4575"},{"$f":"IFERROR(INDEX(PodrobnostiFaktúry[],SMALL(IF(PodrobnostiFaktúry[Faktúra č.]=Chýbajúca_faktúra,ROW(PodrobnostiFaktúry[])-ROW(PodrobnostiFaktúry[#Headers])), ROW(9:9)), MATCH($C$8, PodrobnostiFaktúry[#Headers], 0)),\"\")","v":"Faktúra 3-456-2 – údaje 9"},{"$f":"IFERROR(INDEX(PodrobnostiFaktúry[],SMALL(IF(PodrobnostiFaktúry[Faktúra č.]=Chýbajúca_faktúra,ROW(PodrobnostiFaktúry[])-ROW(PodrobnostiFaktúry[#Headers])), ROW(9:9)), MATCH($D$8, PodrobnostiFaktúry[#Headers], 0)),\"\")","v":5},{"$f":"IFERROR(INDEX(PodrobnostiFaktúry[],SMALL(IF(PodrobnostiFaktúry[Faktúra č.]=Chýbajúca_faktúra,ROW(PodrobnostiFaktúry[])-ROW(PodrobnostiFaktúry[#Headers])), ROW(9:9)), MATCH($E$8, PodrobnostiFaktúry[#Headers], 0)),\"\")","v":{"v":7,"d":"7.00 EUR"}},{"$f":"IFERROR(INDEX(PodrobnostiFaktúry[],SMALL(IF(PodrobnostiFaktúry[Faktúra č.]=Chýbajúca_faktúra,ROW(PodrobnostiFaktúry[])-ROW(PodrobnostiFaktúry[#Headers])), ROW(9:9)), MATCH($F$8, PodrobnostiFaktúry[#Headers], 0)),\"\")","v":{"v":3,"d":"3.00 EUR"}},{"v":32,"d":"32.00 EUR"}]
[null,{"$f":"IFERROR(INDEX(PodrobnostiFaktúry[],SMALL(IF(PodrobnostiFaktúry[Faktúra č.]=Chýbajúca_faktúra,ROW(PodrobnostiFaktúry[])-ROW(PodrobnostiFaktúry[#Headers])), ROW(10:10)), MATCH($B$8, PodrobnostiFaktúry[#Headers], 0)),\"\")","v":"Z4576"},{"$f":"IFERROR(INDEX(PodrobnostiFaktúry[],SMALL(IF(PodrobnostiFaktúry[Faktúra č.]=Chýbajúca_faktúra,ROW(PodrobnostiFaktúry[])-ROW(PodrobnostiFaktúry[#Headers])), ROW(10:10)), MATCH($C$8, PodrobnostiFaktúry[#Headers], 0)),\"\")","v":"Faktúra 3-456-2 – údaje 10"},{"$f":"IFERROR(INDEX(PodrobnostiFaktúry[],SMALL(IF(PodrobnostiFaktúry[Faktúra č.]=Chýbajúca_faktúra,ROW(PodrobnostiFaktúry[])-ROW(PodrobnostiFaktúry[#Headers])), ROW(10:10)), MATCH($D$8, PodrobnostiFaktúry[#Headers], 0)),\"\")","v":80},{"$f":"IFERROR(INDEX(PodrobnostiFaktúry[],SMALL(IF(PodrobnostiFaktúry[Faktúra č.]=Chýbajúca_faktúra,ROW(PodrobnostiFaktúry[])-ROW(PodrobnostiFaktúry[#Headers])), ROW(10:10)), MATCH($E$8, PodrobnostiFaktúry[#Headers], 0)),\"\")","v":{"v":1,"d":"1.00 EUR"}},{"$f":"IFERROR(INDEX(PodrobnostiFaktúry[],SMALL(IF(PodrobnostiFaktúry[Faktúra č.]=Chýbajúca_faktúra,ROW(PodrobnostiFaktúry[])-ROW(PodrobnostiFaktúry[#Headers])), ROW(10:10)), MATCH($F$8, PodrobnostiFaktúry[#Headers], 0)),\"\")","v":0},{"v":80,"d":"80.00 EUR"}]
[null,{"$f":"IFERROR(INDEX(PodrobnostiFaktúry[],SMALL(IF(PodrobnostiFaktúry[Faktúra č.]=Chýbajúca_faktúra,ROW(PodrobnostiFaktúry[])-ROW(PodrobnostiFaktúry[#Headers])), ROW(11:11)), MATCH($B$8, PodrobnostiFaktúry[#Headers], 0)),\"\")","v":"Z4577"},{"$f":"IFERROR(INDEX(PodrobnostiFaktúry[],SMALL(IF(PodrobnostiFaktúry[Faktúra č.]=Chýbajúca_faktúra,ROW(PodrobnostiFaktúry[])-ROW(PodrobnostiFaktúry[#Headers])), ROW(11:11)), MATCH($C$8, PodrobnostiFaktúry[#Headers], 0)),\"\")","v":"Faktúra 3-456-2 – údaje 11"},{"$f":"IFERROR(INDEX(PodrobnostiFaktúry[],SMALL(IF(PodrobnostiFaktúry[Faktúra č.]=Chýbajúca_faktúra,ROW(PodrobnostiFaktúry[])-ROW(PodrobnostiFaktúry[#Headers])), ROW(11:11)), MATCH($D$8, PodrobnostiFaktúry[#Headers], 0)),\"\")","v":65},{"$f":"IFERROR(INDEX(PodrobnostiFaktúry[],SMALL(IF(PodrobnostiFaktúry[Faktúra č.]=Chýbajúca_faktúra,ROW(PodrobnostiFaktúry[])-ROW(PodrobnostiFaktúry[#Headers])), ROW(11:11)), MATCH($E$8, PodrobnostiFaktúry[#Headers], 0)),\"\")","v":{"v":7,"d":"7.00 EUR"}},{"$f":"IFERROR(INDEX(PodrobnostiFaktúry[],SMALL(IF(PodrobnostiFaktúry[Faktúra č.]=Chýbajúca_faktúra,ROW(PodrobnostiFaktúry[])-ROW(PodrobnostiFaktúry[#Headers])), ROW(11:11)), MATCH($F$8, PodrobnostiFaktúry[#Headers], 0)),\"\")","v":0},{"v":455,"d":"455.00 EUR"}]
[null,{"$f":"IFERROR(INDEX(PodrobnostiFaktúry[],SMALL(IF(PodrobnostiFaktúry[Faktúra č.]=Chýbajúca_faktúra,ROW(PodrobnostiFaktúry[])-ROW(PodrobnostiFaktúry[#Headers])), ROW(12:12)), MATCH($B$8, PodrobnostiFaktúry[#Headers], 0)),\"\")","v":"Z4578"},{"$f":"IFERROR(INDEX(PodrobnostiFaktúry[],SMALL(IF(PodrobnostiFaktúry[Faktúra č.]=Chýbajúca_faktúra,ROW(PodrobnostiFaktúry[])-ROW(PodrobnostiFaktúry[#Headers])), ROW(12:12)), MATCH($C$8, PodrobnostiFaktúry[#Headers], 0)),\"\")","v":"Faktúra 3-456-2 – údaje 12"},{"$f":"IFERROR(INDEX(PodrobnostiFaktúry[],SMALL(IF(PodrobnostiFaktúry[Faktúra č.]=Chýbajúca_faktúra,ROW(PodrobnostiFaktúry[])-ROW(PodrobnostiFaktúry[#Headers])), ROW(12:12)), MATCH($D$8, PodrobnostiFaktúry[#Headers], 0)),\"\")","v":44},{"$f":"IFERROR(INDEX(PodrobnostiFaktúry[],SMALL(IF(PodrobnostiFaktúry[Faktúra č.]=Chýbajúca_faktúra,ROW(PodrobnostiFaktúry[])-ROW(PodrobnostiFaktúry[#Headers])), ROW(12:12)), MATCH($E$8, PodrobnostiFaktúry[#Headers], 0)),\"\")","v":{"v":1,"d":"1.00 EUR"}},{"$f":"IFERROR(INDEX(PodrobnostiFaktúry[],SMALL(IF(PodrobnostiFaktúry[Faktúra č.]=Chýbajúca_faktúra,ROW(PodrobnostiFaktúry[])-ROW(PodrobnostiFaktúry[#Headers])), ROW(12:12)), MATCH($F$8, PodrobnostiFaktúry[#Headers], 0)),\"\")","v":0},{"v":44,"d":"44.00 EUR"}]
[null,{"$f":"IFERROR(INDEX(PodrobnostiFaktúry[],SMALL(IF(PodrobnostiFaktúry[Faktúra č.]=Chýbajúca_faktúra,ROW(PodrobnostiFaktúry[])-ROW(PodrobnostiFaktúry[#Headers])), ROW(13:13)), MATCH($B$8, PodrobnostiFaktúry[#Headers], 0)),\"\")","v":""},{"$f":"IFERROR(INDEX(PodrobnostiFaktúry[],SMALL(IF(PodrobnostiFaktúry[Faktúra č.]=Chýbajúca_faktúra,ROW(PodrobnostiFaktúry[])-ROW(PodrobnostiFaktúry[#Headers])), ROW(13:13)), MATCH($C$8, PodrobnostiFaktúry[#Headers], 0)),\"\")","v":""},{"$f":"IFERROR(INDEX(PodrobnostiFaktúry[],SMALL(IF(PodrobnostiFaktúry[Faktúra č.]=Chýbajúca_faktúra,ROW(PodrobnostiFaktúry[])-ROW(PodrobnostiFaktúry[#Headers])), ROW(13:13)), MATCH($D$8, PodrobnostiFaktúry[#Headers], 0)),\"\")","v":""},{"$f":"IFERROR(INDEX(PodrobnostiFaktúry[],SMALL(IF(PodrobnostiFaktúry[Faktúra č.]=Chýbajúca_faktúra,ROW(PodrobnostiFaktúry[])-ROW(PodrobnostiFaktúry[#Headers])), ROW(13:13)), MATCH($E$8, PodrobnostiFaktúry[#Headers], 0)),\"\")","v":""},{"$f":"IFERROR(INDEX(PodrobnostiFaktúry[],SMALL(IF(PodrobnostiFaktúry[Faktúra č.]=Chýbajúca_faktúra,ROW(PodrobnostiFaktúry[])-ROW(PodrobnostiFaktúry[#Headers])), ROW(13:13)), MATCH($F$8, PodrobnostiFaktúry[#Headers], 0)),\"\")","v":""},""]
[null,{"$f":"IFERROR(INDEX(PodrobnostiFaktúry[],SMALL(IF(PodrobnostiFaktúry[Faktúra č.]=Chýbajúca_faktúra,ROW(PodrobnostiFaktúry[])-ROW(PodrobnostiFaktúry[#Headers])), ROW(14:14)), MATCH($B$8, PodrobnostiFaktúry[#Headers], 0)),\"\")","v":""},{"$f":"IFERROR(INDEX(PodrobnostiFaktúry[],SMALL(IF(PodrobnostiFaktúry[Faktúra č.]=Chýbajúca_faktúra,ROW(PodrobnostiFaktúry[])-ROW(PodrobnostiFaktúry[#Headers])), ROW(14:14)), MATCH($C$8, PodrobnostiFaktúry[#Headers], 0)),\"\")","v":""},{"$f":"IFERROR(INDEX(PodrobnostiFaktúry[],SMALL(IF(PodrobnostiFaktúry[Faktúra č.]=Chýbajúca_faktúra,ROW(PodrobnostiFaktúry[])-ROW(PodrobnostiFaktúry[#Headers])), ROW(14:14)), MATCH($D$8, PodrobnostiFaktúry[#Headers], 0)),\"\")","v":""},{"$f":"IFERROR(INDEX(PodrobnostiFaktúry[],SMALL(IF(PodrobnostiFaktúry[Faktúra č.]=Chýbajúca_faktúra,ROW(PodrobnostiFaktúry[])-ROW(PodrobnostiFaktúry[#Headers])), ROW(14:14)), MATCH($E$8, PodrobnostiFaktúry[#Headers], 0)),\"\")","v":""},{"$f":"IFERROR(INDEX(PodrobnostiFaktúry[],SMALL(IF(PodrobnostiFaktúry[Faktúra č.]=Chýbajúca_faktúra,ROW(PodrobnostiFaktúry[])-ROW(PodrobnostiFaktúry[#Headers])), ROW(14:14)), MATCH($F$8, PodrobnostiFaktúry[#Headers], 0)),\"\")","v":""},""]
[null,{"$f":"IFERROR(INDEX(PodrobnostiFaktúry[],SMALL(IF(PodrobnostiFaktúry[Faktúra č.]=Chýbajúca_faktúra,ROW(PodrobnostiFaktúry[])-ROW(PodrobnostiFaktúry[#Headers])), ROW(15:15)), MATCH($B$8, PodrobnostiFaktúry[#Headers], 0)),\"\")","v":""},{"$f":"IFERROR(INDEX(PodrobnostiFaktúry[],SMALL(IF(PodrobnostiFaktúry[Faktúra č.]=Chýbajúca_faktúra,ROW(PodrobnostiFaktúry[])-ROW(PodrobnostiFaktúry[#Headers])), ROW(15:15)), MATCH($C$8, PodrobnostiFaktúry[#Headers], 0)),\"\")","v":""},{"$f":"IFERROR(INDEX(PodrobnostiFaktúry[],SMALL(IF(PodrobnostiFaktúry[Faktúra č.]=Chýbajúca_faktúra,ROW(PodrobnostiFaktúry[])-ROW(PodrobnostiFaktúry[#Headers])), ROW(15:15)), MATCH($D$8, PodrobnostiFaktúry[#Headers], 0)),\"\")","v":""},{"$f":"IFERROR(INDEX(PodrobnostiFaktúry[],SMALL(IF(PodrobnostiFaktúry[Faktúra č.]=Chýbajúca_faktúra,ROW(PodrobnostiFaktúry[])-ROW(PodrobnostiFaktúry[#Headers])), ROW(15:15)), MATCH($E$8, PodrobnostiFaktúry[#Headers], 0)),\"\")","v":""},{"$f":"IFERROR(INDEX(PodrobnostiFaktúry[],SMALL(IF(PodrobnostiFaktúry[Faktúra č.]=Chýbajúca_faktúra,ROW(PodrobnostiFaktúry[])-ROW(PodrobnostiFaktúry[#Headers])), ROW(15:15)), MATCH($F$8, PodrobnostiFaktúry[#Headers], 0)),\"\")","v":""},""]
[null,{"$f":"IFERROR(INDEX(PodrobnostiFaktúry[],SMALL(IF(PodrobnostiFaktúry[Faktúra č.]=Chýbajúca_faktúra,ROW(PodrobnostiFaktúry[])-ROW(PodrobnostiFaktúry[#Headers])), ROW(16:16)), MATCH($B$8, PodrobnostiFaktúry[#Headers], 0)),\"\")","v":""},{"$f":"IFERROR(INDEX(PodrobnostiFaktúry[],SMALL(IF(PodrobnostiFaktúry[Faktúra č.]=Chýbajúca_faktúra,ROW(PodrobnostiFaktúry[])-ROW(PodrobnostiFaktúry[#Headers])), ROW(16:16)), MATCH($C$8, PodrobnostiFaktúry[#Headers], 0)),\"\")","v":""},{"$f":"IFERROR(INDEX(PodrobnostiFaktúry[],SMALL(IF(PodrobnostiFaktúry[Faktúra č.]=Chýbajúca_faktúra,ROW(PodrobnostiFaktúry[])-ROW(PodrobnostiFaktúry[#Headers])), ROW(16:16)), MATCH($D$8, PodrobnostiFaktúry[#Headers], 0)),\"\")","v":""},{"$f":"IFERROR(INDEX(PodrobnostiFaktúry[],SMALL(IF(PodrobnostiFaktúry[Faktúra č.]=Chýbajúca_faktúra,ROW(PodrobnostiFaktúry[])-ROW(PodrobnostiFaktúry[#Headers])), ROW(16:16)), MATCH($E$8, PodrobnostiFaktúry[#Headers], 0)),\"\")","v":""},{"$f":"IFERROR(INDEX(PodrobnostiFaktúry[],SMALL(IF(PodrobnostiFaktúry[Faktúra č.]=Chýbajúca_faktúra,ROW(PodrobnostiFaktúry[])-ROW(PodrobnostiFaktúry[#Headers])), ROW(16:16)), MATCH($F$8, PodrobnostiFaktúry[#Headers], 0)),\"\")","v":""},""]
[null,{"$f":"IFERROR(INDEX(PodrobnostiFaktúry[],SMALL(IF(PodrobnostiFaktúry[Faktúra č.]=Chýbajúca_faktúra,ROW(PodrobnostiFaktúry[])-ROW(PodrobnostiFaktúry[#Headers])), ROW(17:17)), MATCH($B$8, PodrobnostiFaktúry[#Headers], 0)),\"\")","v":""},{"$f":"IFERROR(INDEX(PodrobnostiFaktúry[],SMALL(IF(PodrobnostiFaktúry[Faktúra č.]=Chýbajúca_faktúra,ROW(PodrobnostiFaktúry[])-ROW(PodrobnostiFaktúry[#Headers])), ROW(17:17)), MATCH($C$8, PodrobnostiFaktúry[#Headers], 0)),\"\")","v":""},{"$f":"IFERROR(INDEX(PodrobnostiFaktúry[],SMALL(IF(PodrobnostiFaktúry[Faktúra č.]=Chýbajúca_faktúra,ROW(PodrobnostiFaktúry[])-ROW(PodrobnostiFaktúry[#Headers])), ROW(17:17)), MATCH($D$8, PodrobnostiFaktúry[#Headers], 0)),\"\")","v":""},{"$f":"IFERROR(INDEX(PodrobnostiFaktúry[],SMALL(IF(PodrobnostiFaktúry[Faktúra č.]=Chýbajúca_faktúra,ROW(PodrobnostiFaktúry[])-ROW(PodrobnostiFaktúry[#Headers])), ROW(17:17)), MATCH($E$8, PodrobnostiFaktúry[#Headers], 0)),\"\")","v":""},{"$f":"IFERROR(INDEX(PodrobnostiFaktúry[],SMALL(IF(PodrobnostiFaktúry[Faktúra č.]=Chýbajúca_faktúra,ROW(PodrobnostiFaktúry[])-ROW(PodrobnostiFaktúry[#Headers])), ROW(17:17)), MATCH($F$8, PodrobnostiFaktúry[#Headers], 0)),\"\")","v":""},""]
[null,{"$f":"IFERROR(INDEX(PodrobnostiFaktúry[],SMALL(IF(PodrobnostiFaktúry[Faktúra č.]=Chýbajúca_faktúra,ROW(PodrobnostiFaktúry[])-ROW(PodrobnostiFaktúry[#Headers])), ROW(18:18)), MATCH($B$8, PodrobnostiFaktúry[#Headers], 0)),\"\")","v":""},{"$f":"IFERROR(INDEX(PodrobnostiFaktúry[],SMALL(IF(PodrobnostiFaktúry[Faktúra č.]=Chýbajúca_faktúra,ROW(PodrobnostiFaktúry[])-ROW(PodrobnostiFaktúry[#Headers])), ROW(18:18)), MATCH($C$8, PodrobnostiFaktúry[#Headers], 0)),\"\")","v":""},{"$f":"IFERROR(INDEX(PodrobnostiFaktúry[],SMALL(IF(PodrobnostiFaktúry[Faktúra č.]=Chýbajúca_faktúra,ROW(PodrobnostiFaktúry[])-ROW(PodrobnostiFaktúry[#Headers])), ROW(18:18)), MATCH($D$8, PodrobnostiFaktúry[#Headers], 0)),\"\")","v":""},{"$f":"IFERROR(INDEX(PodrobnostiFaktúry[],SMALL(IF(PodrobnostiFaktúry[Faktúra č.]=Chýbajúca_faktúra,ROW(PodrobnostiFaktúry[])-ROW(PodrobnostiFaktúry[#Headers])), ROW(18:18)), MATCH($E$8, PodrobnostiFaktúry[#Headers], 0)),\"\")","v":""},{"$f":"IFERROR(INDEX(PodrobnostiFaktúry[],SMALL(IF(PodrobnostiFaktúry[Faktúra č.]=Chýbajúca_faktúra,ROW(PodrobnostiFaktúry[])-ROW(PodrobnostiFaktúry[#Headers])), ROW(18:18)), MATCH($F$8, PodrobnostiFaktúry[#Headers], 0)),\"\")","v":""},""]
[null,{"$f":"IFERROR(INDEX(PodrobnostiFaktúry[],SMALL(IF(PodrobnostiFaktúry[Faktúra č.]=Chýbajúca_faktúra,ROW(PodrobnostiFaktúry[])-ROW(PodrobnostiFaktúry[#Headers])), ROW(19:19)), MATCH($B$8, PodrobnostiFaktúry[#Headers], 0)),\"\")","v":""},{"$f":"IFERROR(INDEX(PodrobnostiFaktúry[],SMALL(IF(PodrobnostiFaktúry[Faktúra č.]=Chýbajúca_faktúra,ROW(PodrobnostiFaktúry[])-ROW(PodrobnostiFaktúry[#Headers])), ROW(19:19)), MATCH($C$8, PodrobnostiFaktúry[#Headers], 0)),\"\")","v":""},{"$f":"IFERROR(INDEX(PodrobnostiFaktúry[],SMALL(IF(PodrobnostiFaktúry[Faktúra č.]=Chýbajúca_faktúra,ROW(PodrobnostiFaktúry[])-ROW(PodrobnostiFaktúry[#Headers])), ROW(19:19)), MATCH($D$8, PodrobnostiFaktúry[#Headers], 0)),\"\")","v":""},{"$f":"IFERROR(INDEX(PodrobnostiFaktúry[],SMALL(IF(PodrobnostiFaktúry[Faktúra č.]=Chýbajúca_faktúra,ROW(PodrobnostiFaktúry[])-ROW(PodrobnostiFaktúry[#Headers])), ROW(19:19)), MATCH($E$8, PodrobnostiFaktúry[#Headers], 0)),\"\")","v":""},{"$f":"IFERROR(INDEX(PodrobnostiFaktúry[],SMALL(IF(PodrobnostiFaktúry[Faktúra č.]=Chýbajúca_faktúra,ROW(PodrobnostiFaktúry[])-ROW(PodrobnostiFaktúry[#Headers])), ROW(19:19)), MATCH($F$8, PodrobnostiFaktúry[#Headers], 0)),\"\")","v":""},""]
[null,{"$f":"IFERROR(INDEX(PodrobnostiFaktúry[],SMALL(IF(PodrobnostiFaktúry[Faktúra č.]=Chýbajúca_faktúra,ROW(PodrobnostiFaktúry[])-ROW(PodrobnostiFaktúry[#Headers])), ROW(20:20)), MATCH($B$8, PodrobnostiFaktúry[#Headers], 0)),\"\")","v":""},{"$f":"IFERROR(INDEX(PodrobnostiFaktúry[],SMALL(IF(PodrobnostiFaktúry[Faktúra č.]=Chýbajúca_faktúra,ROW(PodrobnostiFaktúry[])-ROW(PodrobnostiFaktúry[#Headers])), ROW(20:20)), MATCH($C$8, PodrobnostiFaktúry[#Headers], 0)),\"\")","v":""},{"$f":"IFERROR(INDEX(PodrobnostiFaktúry[],SMALL(IF(PodrobnostiFaktúry[Faktúra č.]=Chýbajúca_faktúra,ROW(PodrobnostiFaktúry[])-ROW(PodrobnostiFaktúry[#Headers])), ROW(20:20)), MATCH($D$8, PodrobnostiFaktúry[#Headers], 0)),\"\")","v":""},{"$f":"IFERROR(INDEX(PodrobnostiFaktúry[],SMALL(IF(PodrobnostiFaktúry[Faktúra č.]=Chýbajúca_faktúra,ROW(PodrobnostiFaktúry[])-ROW(PodrobnostiFaktúry[#Headers])), ROW(20:20)), MATCH($E$8, PodrobnostiFaktúry[#Headers], 0)),\"\")","v":""},{"$f":"IFERROR(INDEX(PodrobnostiFaktúry[],SMALL(IF(PodrobnostiFaktúry[Faktúra č.]=Chýbajúca_faktúra,ROW(PodrobnostiFaktúry[])-ROW(PodrobnostiFaktúry[#Headers])), ROW(20:20)), MATCH($F$8, PodrobnostiFaktúry[#Headers], 0)),\"\")","v":""},""]
[null,{"$f":"IFERROR(INDEX(PodrobnostiFaktúry[],SMALL(IF(PodrobnostiFaktúry[Faktúra č.]=Chýbajúca_faktúra,ROW(PodrobnostiFaktúry[])-ROW(PodrobnostiFaktúry[#Headers])), ROW(21:21)), MATCH($B$8, PodrobnostiFaktúry[#Headers], 0)),\"\")","v":""},{"$f":"IFERROR(INDEX(PodrobnostiFaktúry[],SMALL(IF(PodrobnostiFaktúry[Faktúra č.]=Chýbajúca_faktúra,ROW(PodrobnostiFaktúry[])-ROW(PodrobnostiFaktúry[#Headers])), ROW(21:21)), MATCH($C$8, PodrobnostiFaktúry[#Headers], 0)),\"\")","v":""},{"$f":"IFERROR(INDEX(PodrobnostiFaktúry[],SMALL(IF(PodrobnostiFaktúry[Faktúra č.]=Chýbajúca_faktúra,ROW(PodrobnostiFaktúry[])-ROW(PodrobnostiFaktúry[#Headers])), ROW(21:21)), MATCH($D$8, PodrobnostiFaktúry[#Headers], 0)),\"\")","v":""},{"$f":"IFERROR(INDEX(PodrobnostiFaktúry[],SMALL(IF(PodrobnostiFaktúry[Faktúra č.]=Chýbajúca_faktúra,ROW(PodrobnostiFaktúry[])-ROW(PodrobnostiFaktúry[#Headers])), ROW(21:21)), MATCH($E$8, PodrobnostiFaktúry[#Headers], 0)),\"\")","v":""},{"$f":"IFERROR(INDEX(PodrobnostiFaktúry[],SMALL(IF(PodrobnostiFaktúry[Faktúra č.]=Chýbajúca_faktúra,ROW(PodrobnostiFaktúry[])-ROW(PodrobnostiFaktúry[#Headers])), ROW(21:21)), MATCH($F$8, PodrobnostiFaktúry[#Headers], 0)),\"\")","v":""},""]
[null,{"$f":"IFERROR(INDEX(PodrobnostiFaktúry[],SMALL(IF(PodrobnostiFaktúry[Faktúra č.]=Chýbajúca_faktúra,ROW(PodrobnostiFaktúry[])-ROW(PodrobnostiFaktúry[#Headers])), ROW(22:22)), MATCH($B$8, PodrobnostiFaktúry[#Headers], 0)),\"\")","v":""},{"$f":"IFERROR(INDEX(PodrobnostiFaktúry[],SMALL(IF(PodrobnostiFaktúry[Faktúra č.]=Chýbajúca_faktúra,ROW(PodrobnostiFaktúry[])-ROW(PodrobnostiFaktúry[#Headers])), ROW(22:22)), MATCH($C$8, PodrobnostiFaktúry[#Headers], 0)),\"\")","v":""},{"$f":"IFERROR(INDEX(PodrobnostiFaktúry[],SMALL(IF(PodrobnostiFaktúry[Faktúra č.]=Chýbajúca_faktúra,ROW(PodrobnostiFaktúry[])-ROW(PodrobnostiFaktúry[#Headers])), ROW(22:22)), MATCH($D$8, PodrobnostiFaktúry[#Headers], 0)),\"\")","v":""},{"$f":"IFERROR(INDEX(PodrobnostiFaktúry[],SMALL(IF(PodrobnostiFaktúry[Faktúra č.]=Chýbajúca_faktúra,ROW(PodrobnostiFaktúry[])-ROW(PodrobnostiFaktúry[#Headers])), ROW(22:22)), MATCH($E$8, PodrobnostiFaktúry[#Headers], 0)),\"\")","v":""},{"$f":"IFERROR(INDEX(PodrobnostiFaktúry[],SMALL(IF(PodrobnostiFaktúry[Faktúra č.]=Chýbajúca_faktúra,ROW(PodrobnostiFaktúry[])-ROW(PodrobnostiFaktúry[#Headers])), ROW(22:22)), MATCH($F$8, PodrobnostiFaktúry[#Headers], 0)),\"\")","v":""},""]
[null,{"$f":"IFERROR(INDEX(PodrobnostiFaktúry[],SMALL(IF(PodrobnostiFaktúry[Faktúra č.]=Chýbajúca_faktúra,ROW(PodrobnostiFaktúry[])-ROW(PodrobnostiFaktúry[#Headers])), ROW(23:23)), MATCH($B$8, PodrobnostiFaktúry[#Headers], 0)),\"\")","v":""},{"$f":"IFERROR(INDEX(PodrobnostiFaktúry[],SMALL(IF(PodrobnostiFaktúry[Faktúra č.]=Chýbajúca_faktúra,ROW(PodrobnostiFaktúry[])-ROW(PodrobnostiFaktúry[#Headers])), ROW(23:23)), MATCH($C$8, PodrobnostiFaktúry[#Headers], 0)),\"\")","v":""},{"$f":"IFERROR(INDEX(PodrobnostiFaktúry[],SMALL(IF(PodrobnostiFaktúry[Faktúra č.]=Chýbajúca_faktúra,ROW(PodrobnostiFaktúry[])-ROW(PodrobnostiFaktúry[#Headers])), ROW(23:23)), MATCH($D$8, PodrobnostiFaktúry[#Headers], 0)),\"\")","v":""},{"$f":"IFERROR(INDEX(PodrobnostiFaktúry[],SMALL(IF(PodrobnostiFaktúry[Faktúra č.]=Chýbajúca_faktúra,ROW(PodrobnostiFaktúry[])-ROW(PodrobnostiFaktúry[#Headers])), ROW(23:23)), MATCH($E$8, PodrobnostiFaktúry[#Headers], 0)),\"\")","v":""},{"$f":"IFERROR(INDEX(PodrobnostiFaktúry[],SMALL(IF(PodrobnostiFaktúry[Faktúra č.]=Chýbajúca_faktúra,ROW(PodrobnostiFaktúry[])-ROW(PodrobnostiFaktúry[#Headers])), ROW(23:23)), MATCH($F$8, PodrobnostiFaktúry[#Headers], 0)),\"\")","v":""},""]
[null,{"$f":"IFERROR(INDEX(PodrobnostiFaktúry[],SMALL(IF(PodrobnostiFaktúry[Faktúra č.]=Chýbajúca_faktúra,ROW(PodrobnostiFaktúry[])-ROW(PodrobnostiFaktúry[#Headers])), ROW(24:24)), MATCH($B$8, PodrobnostiFaktúry[#Headers], 0)),\"\")","v":""},{"$f":"IFERROR(INDEX(PodrobnostiFaktúry[],SMALL(IF(PodrobnostiFaktúry[Faktúra č.]=Chýbajúca_faktúra,ROW(PodrobnostiFaktúry[])-ROW(PodrobnostiFaktúry[#Headers])), ROW(24:24)), MATCH($C$8, PodrobnostiFaktúry[#Headers], 0)),\"\")","v":""},{"$f":"IFERROR(INDEX(PodrobnostiFaktúry[],SMALL(IF(PodrobnostiFaktúry[Faktúra č.]=Chýbajúca_faktúra,ROW(PodrobnostiFaktúry[])-ROW(PodrobnostiFaktúry[#Headers])), ROW(24:24)), MATCH($D$8, PodrobnostiFaktúry[#Headers], 0)),\"\")","v":""},{"$f":"IFERROR(INDEX(PodrobnostiFaktúry[],SMALL(IF(PodrobnostiFaktúry[Faktúra č.]=Chýbajúca_faktúra,ROW(PodrobnostiFaktúry[])-ROW(PodrobnostiFaktúry[#Headers])), ROW(24:24)), MATCH($E$8, PodrobnostiFaktúry[#Headers], 0)),\"\")","v":""},{"$f":"IFERROR(INDEX(PodrobnostiFaktúry[],SMALL(IF(PodrobnostiFaktúry[Faktúra č.]=Chýbajúca_faktúra,ROW(PodrobnostiFaktúry[])-ROW(PodrobnostiFaktúry[#Headers])), ROW(24:24)), MATCH($F$8, PodrobnostiFaktúry[#Headers], 0)),\"\")","v":""},""]
[null,{"$f":"IFERROR(INDEX(PodrobnostiFaktúry[],SMALL(IF(PodrobnostiFaktúry[Faktúra č.]=Chýbajúca_faktúra,ROW(PodrobnostiFaktúry[])-ROW(PodrobnostiFaktúry[#Headers])), ROW(25:25)), MATCH($B$8, PodrobnostiFaktúry[#Headers], 0)),\"\")","v":""},{"$f":"IFERROR(INDEX(PodrobnostiFaktúry[],SMALL(IF(PodrobnostiFaktúry[Faktúra č.]=Chýbajúca_faktúra,ROW(PodrobnostiFaktúry[])-ROW(PodrobnostiFaktúry[#Headers])), ROW(25:25)), MATCH($C$8, PodrobnostiFaktúry[#Headers], 0)),\"\")","v":""},{"$f":"IFERROR(INDEX(PodrobnostiFaktúry[],SMALL(IF(PodrobnostiFaktúry[Faktúra č.]=Chýbajúca_faktúra,ROW(PodrobnostiFaktúry[])-ROW(PodrobnostiFaktúry[#Headers])), ROW(25:25)), MATCH($D$8, PodrobnostiFaktúry[#Headers], 0)),\"\")","v":""},{"$f":"IFERROR(INDEX(PodrobnostiFaktúry[],SMALL(IF(PodrobnostiFaktúry[Faktúra č.]=Chýbajúca_faktúra,ROW(PodrobnostiFaktúry[])-ROW(PodrobnostiFaktúry[#Headers])), ROW(25:25)), MATCH($E$8, PodrobnostiFaktúry[#Headers], 0)),\"\")","v":""},{"$f":"IFERROR(INDEX(PodrobnostiFaktúry[],SMALL(IF(PodrobnostiFaktúry[Faktúra č.]=Chýbajúca_faktúra,ROW(PodrobnostiFaktúry[])-ROW(PodrobnostiFaktúry[#Headers])), ROW(25:25)), MATCH($F$8, PodrobnostiFaktúry[#Headers], 0)),\"\")","v":""},""]
[{"$nulls":5},"Medzisúčet faktúry",{"$f":"SUM(FaktúraProjektu[Cena])","v":{"v":2014,"d":"2,014.00 EUR"}}]
[{"$nulls":5},"Sadzba dane",{"$f":"VLOOKUP(Chýbajúca_faktúra,FaktúryHlavné[],5)","v":{"v":0.0875,"d":"8.75%"}}]
[{"$nulls":5},"Daň z predaja",{"$f":"G34*G35","v":{"v":176.225,"d":"176.23 EUR"}}]
[{"$nulls":5},"Iné",{"$f":"VLOOKUP(Chýbajúca_faktúra,FaktúryHlavné[],6)","v":0}]
[null,{"$f":"\"Všetky šeky vystaviť v prospech spoločnosti \"&NázovSpoločnosti&\".\"","v":"Všetky šeky vystaviť v prospech spoločnosti Názov spoločnosti."},{"$nulls":3},"Záloha prijatá",{"$f":"VLOOKUP(Chýbajúca_faktúra,FaktúryHlavné[],7)","v":0}]
[null,"Splatnosť <#> dní. Na oneskorené platby sa vzťahuje poplatok za služby vo výške <#> % mesačne.",{"$nulls":3},"CELKOVE",{"$f":"(G34+G36+G37)-G38","v":{"v":2190.225,"d":"2,190.23 EUR"}}]

{"sheet":"Zákazníci","index":1,"n_rows":6,"n_cols":12,"rows_kept":6}
[]
[null,null,"Zákazníci"]
[null,"Vyhľadávanie","Č. spoločnosti","Názov spoločnosti","Meno kontaktnej osoby","Adresa","Mesto","Krajina","PSČ","Telefón","E-mail","Fax"]
[null,{"$f":"C4& \" - \"&D4","v":"1 - Tailspin Toys "},1,"Tailspin Toys ","Robert Lyon","Benkovského 8","Košice","SK","123456","432-555-0178","meno@example.com","432-555-0187"]
[null,"2 - Contoso, Ltd",2,"Contoso, Ltd","Sanjay Patel","Orechová 254","Štúrovo","SK","098765","432-555-0189","meno@example.com","432-555-0123"]
[null,"Súčty",{"$f":"\"Zákazníci spolu: \"&SUBTOTAL(103,ZoznamZákazníkov[Č. spoločnosti])","v":"Zákazníci spolu: 2"}]

{"sheet":"Faktúry – hlavné","index":2,"n_rows":6,"n_cols":11,"rows_kept":6}
[]
[null,"Faktúry"]
[null,"Faktúra č.","Spoločnosť","Dátum vystavenia faktúry","Popis projektu","Sadzba dane","Iné","Záloha","Podrobnosti súčtu","Celková čiastka faktúry","Poznámky"]
[null,"3-456-1","1 - Tailspin Toys ",{"$f":"TODAY()","v":"2019-07-29"},"Projekt 1",{"v":0.0875,"d":"8.75%"},{"v":100,"d":"100.00 EUR"},{"v":100,"d":"100.00 EUR"},{"$f":"SUMIF(PodrobnostiFaktúry[Faktúra č.],\"=\"&FaktúryHlavné[[#This Row],[Faktúra č.]],PodrobnostiFaktúry[Celková hodnota])","v":{"v":5200,"d":"5,200.00 EUR"}},{"$f":"(FaktúryHlavné[[#This Row],[Podrobnosti súčtu]]*(1+FaktúryHlavné[[#This Row],[Sadzba dane]]))+FaktúryHlavné[[#This Row],[Iné]]-FaktúryHlavné[[#This Row],[Záloha]]","v":{"v":5654.999999999999,"d":"5,655.00 EUR"}}]
[null,"3-456-2","2 - Contoso, Ltd",{"$f":"TODAY()+10","v":"2019-08-08"},"Projekt 2",{"v":0.0875,"d":"8.75%"},null,null,{"$f":"SUMIF(PodrobnostiFaktúry[Faktúra č.],\"=\"&FaktúryHlavné[[#This Row],[Faktúra č.]],PodrobnostiFaktúry[Celková hodnota])","v":{"v":2014,"d":"2,014.00 EUR"}},{"$f":"(FaktúryHlavné[[#This Row],[Podrobnosti súčtu]]*(1+FaktúryHlavné[[#This Row],[Sadzba dane]]))+FaktúryHlavné[[#This Row],[Iné]]-FaktúryHlavné[[#This Row],[Záloha]]","v":{"v":2190.225,"d":"2,190.23 EUR"}}]
[null,"Súčty",{"$f":"\"Celkový počet faktúr: \"&SUBTOTAL(103,FaktúryHlavné[Faktúra č.])","v":"Celkový počet faktúr: 2"},{"$nulls":3},{"$f":"SUBTOTAL(109,FaktúryHlavné[Iné])","v":{"v":100,"d":"100.00 EUR"}},{"$f":"SUBTOTAL(109,FaktúryHlavné[Záloha])","v":{"v":100,"d":"100.00 EUR"}},{"$f":"SUBTOTAL(109,FaktúryHlavné[Podrobnosti súčtu])","v":{"v":7214,"d":"7,214.00 EUR"}},{"$f":"SUBTOTAL(109,FaktúryHlavné[Celková čiastka faktúry])","v":{"v":7845.2249999999985,"d":"7,845.23 EUR"}}]

{"sheet":"Fakturačné údaje","index":3,"n_rows":40,"n_cols":8,"rows_kept":40}
[]
[null,"Fakturačné údaje"]
[null,"Popis","Faktúra č.","Č. položky","Množstvo","Jednotková cena","Zľava","Celková hodnota"]
[null,"Faktúra 3-456-1 – údaje 1","3-456-1",1,1,{"v":1,"d":"1.00 EUR"},{"v":1,"d":"1.00 EUR"},{"$f":"(PodrobnostiFaktúry[[#This Row],[Množstvo]]*PodrobnostiFaktúry[[#This Row],[Jednotková cena]])-PodrobnostiFaktúry[[#This Row],[Zľava]]","v":{"v":0,"d":"0.00 EUR"}}]
[null,"Faktúra 3-456-1 – údaje 2","3-456-1",2,2,{"v":2,"d":"2.00 EUR"},{"v":2,"d":"2.00 EUR"},{"$f":"(PodrobnostiFaktúry[[#This Row],[Množstvo]]*PodrobnostiFaktúry[[#This Row],[Jednotková cena]])-PodrobnostiFaktúry[[#This Row],[Zľava]]","v":{"v":2,"d":"2.00 EUR"}}]
[null,"Faktúra 3-456-1 – údaje 3","3-456-1",3,3,{"v":3,"d":"3.00 EUR"},{"v":3,"d":"3.00 EUR"},{"$f":"(PodrobnostiFaktúry[[#This Row],[Množstvo]]*PodrobnostiFaktúry[[#This Row],[Jednotková cena]])-PodrobnostiFaktúry[[#This Row],[Zľava]]","v":{"v":6,"d":"6.00 EUR"}}]
[null,"Faktúra 3-456-1 – údaje 4","3-456-1",4,4,{"v":4,"d":"4.00 EUR"},{"v":4,"d":"4.00 EUR"},{"$f":"(PodrobnostiFaktúry[[#This Row],[Množstvo]]*PodrobnostiFaktúry[[#This Row],[Jednotková cena]])-PodrobnostiFaktúry[[#This Row],[Zľava]]","v":{"v":12,"d":"12.00 EUR"}}]
[null,"Faktúra 3-456-1 – údaje 5","3-456-1",5,5,{"v":5,"d":"5.00 EUR"},{"v":5,"d":"5.00 EUR"},{"$f":"(PodrobnostiFaktúry[[#This Row],[Množstvo]]*PodrobnostiFaktúry[[#This Row],[Jednotková cena]])-PodrobnostiFaktúry[[#This Row],[Zľava]]","v":{"v":20,"d":"20.00 EUR"}}]
[null,"Faktúra 3-456-1 – údaje 6","3-456-1",6,6,{"v":6,"d":"6.00 EUR"},{"v":6,"d":"6.00 EUR"},{"$f":"(PodrobnostiFaktúry[[#This Row],[Množstvo]]*PodrobnostiFaktúry[[#This Row],[Jednotková cena]])-PodrobnostiFaktúry[[#This Row],[Zľava]]","v":{"v":30,"d":"30.00 EUR"}}]
[null,"Faktúra 3-456-1 – údaje 7","3-456-1",7,7,{"v":7,"d":"7.00 EUR"},{"v":7,"d":"7.00 EUR"},{"$f":"(PodrobnostiFaktúry[[#This Row],[Množstvo]]*PodrobnostiFaktúry[[#This Row],[Jednotková cena]])-PodrobnostiFaktúry[[#This Row],[Zľava]]","v":{"v":42,"d":"42.00 EUR"}}]
[null,"Faktúra 3-456-1 – údaje 8","3-456-1",8,8,{"v":8,"d":"8.00 EUR"},{"v":8,"d":"8.00 EUR"},{"$f":"(PodrobnostiFaktúry[[#This Row],[Množstvo]]*PodrobnostiFaktúry[[#This Row],[Jednotková cena]])-PodrobnostiFaktúry[[#This Row],[Zľava]]","v":{"v":56,"d":"56.00 EUR"}}]
[null,"Faktúra 3-456-1 – údaje 9","3-456-1",9,9,{"v":9,"d":"9.00 EUR"},{"v":9,"d":"9.00 EUR"},{"$f":"(PodrobnostiFaktúry[[#This Row],[Množstvo]]*PodrobnostiFaktúry[[#This Row],[Jednotková cena]])-PodrobnostiFaktúry[[#This Row],[Zľava]]","v":{"v":72,"d":"72.00 EUR"}}]
[null,"Faktúra 3-456-1 – údaje 10","3-456-1",10,10,{"v":10,"d":"10.00 EUR"},{"v":10,"d":"10.00 EUR"},{"$f":"(PodrobnostiFaktúry[[#This Row],[Množstvo]]*PodrobnostiFaktúry[[#This Row],[Jednotková cena]])-PodrobnostiFaktúry[[#This Row],[Zľava]]","v":{"v":90,"d":"90.00 EUR"}}]
[null,"Faktúra 3-456-1 – údaje 11","3-456-1",11,11,{"v":11,"d":"11.00 EUR"},{"v":11,"d":"11.00 EUR"},{"$f":"(PodrobnostiFaktúry[[#This Row],[Množstvo]]*PodrobnostiFaktúry[[#This Row],[Jednotková cena]])-PodrobnostiFaktúry[[#This Row],[Zľava]]","v":{"v":110,"d":"110.00 EUR"}}]
[null,"Faktúra 3-456-1 – údaje 12","3-456-1",12,12,{"v":12,"d":"12.00 EUR"},{"v":12,"d":"12.00 EUR"},{"$f":"(PodrobnostiFaktúry[[#This Row],[Množstvo]]*PodrobnostiFaktúry[[#This Row],[Jednotková cena]])-PodrobnostiFaktúry[[#This Row],[Zľava]]","v":{"v":132,"d":"132.00 EUR"}}]
[null,"Faktúra 3-456-1 – údaje 13","3-456-1",13,13,{"v":13,"d":"13.00 EUR"},{"v":13,"d":"13.00 EUR"},{"$f":"(PodrobnostiFaktúry[[#This Row],[Množstvo]]*PodrobnostiFaktúry[[#This Row],[Jednotková cena]])-PodrobnostiFaktúry[[#This Row],[Zľava]]","v":{"v":156,"d":"156.00 EUR"}}]
[null,"Faktúra 3-456-1 – údaje 14","3-456-1",14,14,{"v":14,"d":"14.00 EUR"},{"v":14,"d":"14.00 EUR"},{"$f":"(PodrobnostiFaktúry[[#This Row],[Množstvo]]*PodrobnostiFaktúry[[#This Row],[Jednotková cena]])-PodrobnostiFaktúry[[#This Row],[Zľava]]","v":{"v":182,"d":"182.00 EUR"}}]
[null,"Faktúra 3-456-1 – údaje 15","3-456-1",15,15,{"v":15,"d":"15.00 EUR"},{"v":15,"d":"15.00 EUR"},{"$f":"(PodrobnostiFaktúry[[#This Row],[Množstvo]]*PodrobnostiFaktúry[[#This Row],[Jednotková cena]])-PodrobnostiFaktúry[[#This Row],[Zľava]]","v":{"v":210,"d":"210.00 EUR"}}]
[null,"Faktúra 3-456-1 – údaje 16","3-456-1",16,16,{"v":16,"d":"16.00 EUR"},{"v":16,"d":"16.00 EUR"},{"$f":"(PodrobnostiFaktúry[[#This Row],[Množstvo]]*PodrobnostiFaktúry[[#This Row],[Jednotková cena]])-PodrobnostiFaktúry[[#This Row],[Zľava]]","v":{"v":240,"d":"240.00 EUR"}}]
[null,"Faktúra 3-456-1 – údaje 17","3-456-1",17,17,{"v":17,"d":"17.00 EUR"},{"v":17,"d":"17.00 EUR"},{"$f":"(PodrobnostiFaktúry[[#This Row],[Množstvo]]*PodrobnostiFaktúry[[#This Row],[Jednotková cena]])-PodrobnostiFaktúry[[#This Row],[Zľava]]","v":{"v":272,"d":"272.00 EUR"}}]
[null,"Faktúra 3-456-1 – údaje 18","3-456-1",18,18,{"v":18,"d":"18.00 EUR"},{"v":18,"d":"18.00 EUR"},{"$f":"(PodrobnostiFaktúry[[#This Row],[Množstvo]]*PodrobnostiFaktúry[[#This Row],[Jednotková cena]])-PodrobnostiFaktúry[[#This Row],[Zľava]]","v":{"v":306,"d":"306.00 EUR"}}]
[null,"Faktúra 3-456-1 – údaje 19","3-456-1",19,19,{"v":19,"d":"19.00 EUR"},{"v":19,"d":"19.00 EUR"},{"$f":"(PodrobnostiFaktúry[[#This Row],[Množstvo]]*PodrobnostiFaktúry[[#This Row],[Jednotková cena]])-PodrobnostiFaktúry[[#This Row],[Zľava]]","v":{"v":342,"d":"342.00 EUR"}}]
[null,"Faktúra 3-456-1 – údaje 20","3-456-1",20,20,{"v":20,"d":"20.00 EUR"},{"v":20,"d":"20.00 EUR"},{"$f":"(PodrobnostiFaktúry[[#This Row],[Množstvo]]*PodrobnostiFaktúry[[#This Row],[Jednotková cena]])-PodrobnostiFaktúry[[#This Row],[Zľava]]","v":{"v":380,"d":"380.00 EUR"}}]
[null,"Faktúra 3-456-1 – údaje 21","3-456-1",21,21,{"v":21,"d":"21.00 EUR"},{"v":21,"d":"21.00 EUR"},{"$f":"(PodrobnostiFaktúry[[#This Row],[Množstvo]]*PodrobnostiFaktúry[[#This Row],[Jednotková cena]])-PodrobnostiFaktúry[[#This Row],[Zľava]]","v":{"v":420,"d":"420.00 EUR"}}]
[null,"Faktúra 3-456-1 – údaje 22","3-456-1",22,22,{"v":22,"d":"22.00 EUR"},{"v":22,"d":"22.00 EUR"},{"$f":"(PodrobnostiFaktúry[[#This Row],[Množstvo]]*PodrobnostiFaktúry[[#This Row],[Jednotková cena]])-PodrobnostiFaktúry[[#This Row],[Zľava]]","v":{"v":462,"d":"462.00 EUR"}}]
[null,"Faktúra 3-456-1 – údaje 23","3-456-1",23,23,{"v":23,"d":"23.00 EUR"},{"v":23,"d":"23.00 EUR"},{"$f":"(PodrobnostiFaktúry[[#This Row],[Množstvo]]*PodrobnostiFaktúry[[#This Row],[Jednotková cena]])-PodrobnostiFaktúry[[#This Row],[Zľava]]","v":{"v":506,"d":"506.00 EUR"}}]
[null,"Faktúra 3-456-1 – údaje 24","3-456-1",24,24,{"v":24,"d":"24.00 EUR"},{"v":24,"d":"24.00 EUR"},{"$f":"(PodrobnostiFaktúry[[#This Row],[Množstvo]]*PodrobnostiFaktúry[[#This Row],[Jednotková cena]])-PodrobnostiFaktúry[[#This Row],[Zľava]]","v":{"v":552,"d":"552.00 EUR"}}]
[null,"Faktúra 3-456-1 – údaje 25","3-456-1",25,25,{"v":25,"d":"25.00 EUR"},{"v":25,"d":"25.00 EUR"},{"$f":"(PodrobnostiFaktúry[[#This Row],[Množstvo]]*PodrobnostiFaktúry[[#This Row],[Jednotková cena]])-PodrobnostiFaktúry[[#This Row],[Zľava]]","v":{"v":600,"d":"600.00 EUR"}}]
[null,"Faktúra 3-456-2 – údaje 1","3-456-2","Z4567",39,{"v":5,"d":"5.00 EUR"},null,{"$f":"(PodrobnostiFaktúry[[#This Row],[Množstvo]]*PodrobnostiFaktúry[[#This Row],[Jednotková cena]])-PodrobnostiFaktúry[[#This Row],[Zľava]]","v":{"v":195,"d":"195.00 EUR"}}]
[null,"Faktúra 3-456-2 – údaje 2","3-456-2","Z4568",40,{"v":4,"d":"4.00 EUR"},{"v":5,"d":"5.00 EUR"},{"$f":"(PodrobnostiFaktúry[[#This Row],[Množstvo]]*PodrobnostiFaktúry[[#This Row],[Jednotková cena]])-PodrobnostiFaktúry[[#This Row],[Zľava]]","v":{"v":155,"d":"155.00 EUR"}}]
[null,"Faktúra 3-456-2 – údaje 3","3-456-2","Z4569",30,{"v":6,"d":"6.00 EUR"},{"v":7,"d":"7.00 EUR"},{"$f":"(PodrobnostiFaktúry[[#This Row],[Množstvo]]*PodrobnostiFaktúry[[#This Row],[Jednotková cena]])-PodrobnostiFaktúry[[#This Row],[Zľava]]","v":{"v":173,"d":"173.00 EUR"}}]
[null,"Faktúra 3-456-2 – údaje 4","3-456-2","Z4570",40,{"v":7,"d":"7.00 EUR"},null,{"$f":"(PodrobnostiFaktúry[[#This Row],[Množstvo]]*PodrobnostiFaktúry[[#This Row],[Jednotková cena]])-PodrobnostiFaktúry[[#This Row],[Zľava]]","v":{"v":280,"d":"280.00 EUR"}}]
[null,"Faktúra 3-456-2 – údaje 5","3-456-2","Z4571",10,{"v":4,"d":"4.00 EUR"},null,{"$f":"(PodrobnostiFaktúry[[#This Row],[Množstvo]]*PodrobnostiFaktúry[[#This Row],[Jednotková cena]])-PodrobnostiFaktúry[[#This Row],[Zľava]]","v":{"v":40,"d":"40.00 EUR"}}]
[null,"Faktúra 3-456-2 – údaje 6","3-456-2","Z4572",5,{"v":8,"d":"8.00 EUR"},null,{"$f":"(PodrobnostiFaktúry[[#This Row],[Množstvo]]*PodrobnostiFaktúry[[#This Row],[Jednotková cena]])-PodrobnostiFaktúry[[#This Row],[Zľava]]","v":{"v":40,"d":"40.00 EUR"}}]
[null,"Faktúra 3-456-2 – údaje 7","3-456-2","Z4573",70,{"v":6,"d":"6.00 EUR"},null,{"$f":"(PodrobnostiFaktúry[[#This Row],[Množstvo]]*PodrobnostiFaktúry[[#This Row],[Jednotková cena]])-PodrobnostiFaktúry[[#This Row],[Zľava]]","v":{"v":420,"d":"420.00 EUR"}}]
[null,"Faktúra 3-456-2 – údaje 8","3-456-2","Z4574",25,{"v":4,"d":"4.00 EUR"},null,{"$f":"(PodrobnostiFaktúry[[#This Row],[Množstvo]]*PodrobnostiFaktúry[[#This Row],[Jednotková cena]])-PodrobnostiFaktúry[[#This Row],[Zľava]]","v":{"v":100,"d":"100.00 EUR"}}]
[null,"Faktúra 3-456-2 – údaje 9","3-456-2","Z4575",5,{"v":7,"d":"7.00 EUR"},{"v":3,"d":"3.00 EUR"},{"$f":"(PodrobnostiFaktúry[[#This Row],[Množstvo]]*PodrobnostiFaktúry[[#This Row],[Jednotková cena]])-PodrobnostiFaktúry[[#This Row],[Zľava]]","v":{"v":32,"d":"32.00 EUR"}}]
[null,"Faktúra 3-456-2 – údaje 10","3-456-2","Z4576",80,{"v":1,"d":"1.00 EUR"},null,{"$f":"(PodrobnostiFaktúry[[#This Row],[Množstvo]]*PodrobnostiFaktúry[[#This Row],[Jednotková cena]])-PodrobnostiFaktúry[[#This Row],[Zľava]]","v":{"v":80,"d":"80.00 EUR"}}]
[null,"Faktúra 3-456-2 – údaje 11","3-456-2","Z4577",65,{"v":7,"d":"7.00 EUR"},null,{"$f":"(PodrobnostiFaktúry[[#This Row],[Množstvo]]*PodrobnostiFaktúry[[#This Row],[Jednotková cena]])-PodrobnostiFaktúry[[#This Row],[Zľava]]","v":{"v":455,"d":"455.00 EUR"}}]
[null,"Faktúra 3-456-2 – údaje 12","3-456-2","Z4578",44,{"v":1,"d":"1.00 EUR"},null,{"$f":"(PodrobnostiFaktúry[[#This Row],[Množstvo]]*PodrobnostiFaktúry[[#This Row],[Jednotková cena]])-PodrobnostiFaktúry[[#This Row],[Zľava]]","v":{"v":44,"d":"44.00 EUR"}}]

{"sheet":"Informácie o evidencii faktúr","index":4,"n_rows":40,"n_cols":3,"rows_kept":40,"merged":[[3,1,3,7],[4,1,4,7],[5,1,5,7],[6,1,6,7],[7,2,7,7],[8,2,8,7],[9,2,9,7],[10,2,10,7],[11,2,11,7],[12,1,12,7],[13,2,13,3],[14,2,14,7],[15,1,15,7],[16,2,16,7],[17,2,17,7],[18,2,18,7],[19,2,19,7],[20,2,20,7],[21,2,21,7],[22,1,22,7],[23,1,23,7],[24,2,24,7],[25,2,25,7],[26,2,26,7],[27,2,27,7],[28,1,28,7],[29,1,29,7],[30,2,30,7],[31,2,31,7],[32,2,32,7],[33,2,33,7],[34,2,34,7],[36,2,36,7],[37,2,37,7],[38,2,38,7],[39,2,39,7]]}
[null,"Informácie o evidencii faktúr"]
[]
[]
[null,"Evidencia faktúr je navrhnutá tak, aby uchovávala históriu zákazníkov, faktúr a fakturačných údajov, aby ste si mohli ukladať viacero faktúr bez vytvárania viacerých súborov. Pomocou evidencie faktúr môžete tiež analyzovať predtým fakturované údaje. Môžete napríklad zobraziť všetky faktúry zákazníka, konkrétneho projektu, alebo zobraziť všetky faktúry za posledný mesiac, posledný rok atď."]
[null,"Skôr než začnete, pozrite si uvedené vzorové údaje. V hárku Faktúra vyberte bunku napravo od položky Č. faktúry (bunka L8) a zobrazí sa rozbaľovací zoznam. Vyberte rozbaľovaciu šípku a potom vyberte vzorovú faktúru. Všimnite si, ako sa všetky informácie o faktúre automaticky zmenia tak, aby zodpovedali vybratej faktúre. Teraz sa pozrite na hárky Zákazníci, Faktúry – hlavné a Fakturačné údaje. Každý z týchto hárkov poskytuje informácie o faktúre a všetky zmeny, ktoré vykonáte, sa automaticky aktualizujú. "]
[null,"Ako začať?"]
[null,"Upravte hárok faktúry tak, aby zodpovedal informáciám o vašej spoločnosti, a to pomocou týchto krokov:"]
[null,"1.","Prejdite na hárok Faktúra a na karte Revízia v skupine tab, in the Chrániť  vyberte položku Zrušiť zabezpečenie hárka. "]
[null,null,"Poznámka: Hárok Faktúra je zabezpečený tak, aby sa predišlo neúmyselnej zmene, keďže, ako už bolo spomenuté, väčšina údajov v tomto hárku sa načíta zo všetkých ostatných hárkov v zošite. "]
[null,"2.","Hlavičku faktúry môžete prispôsobiť zadaním názvu spoločnosti, ulice, mesta, PSČ, e-mailovej adresy, webovej lokality a podobne. V dolnej časti faktúry (riadok 43) upravte platobné pokyny. "]
[null,null,"Dôležité upozornenie Neupravujte fakturačné údaje. Vo všetkých týchto bunkách sa nachádzajú vzorce, ktoré automaticky aktualizujú faktúru, ako je uvedené v časti Informácie o evidencii faktúr.  "]
[null,"3.","(Voliteľné) Úprava farieb v celom zošite: Na karte Rozloženie strany vyberte v skupine Motívy položku Farby a vyberte z galérie farieb inú množinu farieb motívu. "]
[null,"Tip: Vytvorte vlastnú množinu farieb motívu, ktorá zodpovedá značke vašej spoločnosti. Ak to chcete urobiť, na karte Rozloženie strany v skupine Motívy vyberte položku Farby a potom vyberte položku Prispôsobiť farby. Ďalšie informácie o vytváraní vlastnej množiny farieb nájdete v tejto téme Pomocníka: "]
[null,null,"Prispôsobte motív dokumentu."]
[null,"4.","Po vykonaní požadovaných zmien sa vráťte do hárka Faktúra a na karte Revízia vyberte v skupine Zmeny položku Zabezpečiť hárok a potom vyberte tlačidlo OK. Keď je hárok Faktúra zabezpečený, jedinou bunkou, ktorú môžete vybrať, je bunka s rozbaľovacou ponukou Faktúry Č.."]
[null,"Ako vytvorím faktúru?"]
[null,"1.","V hárku Zákazníci zadajte informácie o zákazníkoch, ako je napríklad názov spoločnosti a adresa. Všimnite si, že Č. spoločnosti je dôležitou položkou, keďže poskytuje jedinečný identifikátor každej spoločnosť, ktorý sa používa v rámci evidencie faktúr. Všimnite si tiež, že spoločnosť potrebujete pridať len raz. Pri ďalších faktúrach tej istej spoločnosti tento krok môžete vynechať. "]
[null,null,"Poznámka: Ak priradíte rovnaké číslo viac ako jednej spoločnosti alebo zadáte rovnaký názov spoločnosti viackrát, tieto položky sa označia červenou farbou, aby upozornili na duplicitu. "]
[null,"2.","V hárku Faktúry – hlavné zadajte základné informácie o faktúre, ako je napríklad č. faktúry, dátum fakturácie a popis projektu. Okrem položky Č. spoločnosti, aj Č. faktúry je dôležitou položkou, keďže poskytuje jedinečný identifikátor každej faktúry, ktorý sa používa v rámci evidencie faktúr. Ďalšou dôležitou položkou je Spoločnosť. Keď z rozbaľovacieho zoznamu vyberiete spoločnosť, faktúra sa priradí tejto spoločnosti. Po výbere č. faktúry na hárku Faktúra sa informácie o spoločnosti, ako je napríklad názov spoločnosti a adresa, automaticky vyplnia na faktúre."]
[null,null,"Poznámka: Ak priradíte rovnaké číslo viac ako jednej faktúre, tieto položky sa označia červenou farbou, aby upozornili na duplicitu. "]
[null,"3.","Do hárka Fakturačné údaje zadajte podrobnosti o faktúre, ako je napríklad popis položky, č. položky, množstvo a jednotková cena. Rozbaľovacia ponuka Č. faktúry poskytuje zoznam faktúr, ktoré ste zadali v hárku Faktúry – hlavné, čím sa uľahčí zadávanie údajov. Podobne ako č. spoločnosti v predchádzajúcom kroku, č. faktúry priraďuje túto položku údajov s konkrétnou faktúrou. Po výbere č. faktúry na hárku Faktúra z rozbaľovacieho zoznamu Faktúry Č. sa zobrazia súvisiace položky fakturačných údajov pre túto faktúru."]
[null,null,"Poznámka: Máte obmedzenie na 25 položiek údajov na faktúru. Ak je pridaných viac ako 25 položiek, všetky zodpovedajúce záznamy zmenia farbu na červenú, čím budete upozornení na toto obmedzenie. Ak máte viac ako 25 fakturačných položiek, budete musieť vytvoriť druhú faktúru. "]
[null,"Ako pridám ďalších zákazníkov, faktúry a fakturačné údaje?"]
[null,"Údaje o zákazníkoch, faktúrach a fakturačné údaje sa ukladajú v excelových tabuľkách. Keď do tabuľky pridáte nový riadok, novo pridaný riadok sa naformátuje automaticky a všetky výpočty sa skopírujú. Ak chcete pridať nové riadky tabuľky, vykonajte niektorý z týchto krokov:"]
[null,"● ","Ak v tabuľke nie je riadok súčtu, začnite písať pod tabuľkou a ona sa automaticky rozšíri po stlačení klávesu Enter alebo Tab."]
[null,"● ","Umiestnite ukazovateľ bunky do poslednej bunky nad riadkom súčtu, v tabuľke Faktúry v bunke Poznámky pre poslednú faktúru a potom stlačte kláves Tab."]
[null,"● ","Na karte Domov vyberte v skupine Bunky položku Vložiť a potom vyberte položku Riadky tabuľky nad alebo Riadky tabuľky dole. "]
[null,"● ","V pravom dolnom rohu tabuľky umiestnite ukazovateľ myši na rukoväť na zmenu veľkosti tabuľky. Posunutím rukoväte smerom dolu zvýšite počet riadkov tabuľky, ktoré sú k dispozícii."]
[null,"Ako môžem analyzovať fakturačné údaje?"]
[null,"Ako je uvedené v časti Informácie o evidencii faktúr, po zadaní viacerých faktúr môžete zobraziť zoznam všetkých faktúr konkrétneho zákazníka, projektu, určitého časového intervalu a podobne. Tento typ analýzy sa vykonáva pomocou filtra, ktorý umožňuje zoznam údajov rýchlo zúžiť. Ak chcete získať prístup k filtru v tabuľkách Zákazníci, Faktúry alebo Fakturačné údaje, vyberte rozbaľovaciu šípku vedľa názvu ľubovoľného poľa tabuľky. Zobrazí sa tabla Filter s rôznymi možnosťami filtrovania. Tu je niekoľko príkladov filtrovania, ktoré vám pomôžu na začiatok:"]
[null,"● ","Ak chcete zobraziť celkovú sumu fakturovanú konkrétnemu zákazníkovi, postupujte takto: V hárku Faktúry – hlavné, napravo od poľa Č. spoločnosti, vyberte rozbaľovaciu šípku. Na table Filter kliknite na položku Vybrať všetko, čím zrušíte výber všetkých spoločností, vyberte požadovanú spoločnosť a potom kliknite na tlačidlo OK. "]
[null,null,"Tip: Na table Filter môžete tiež zadať názov zákazníka do textového poľa Hľadať a rýchlo vyhľadať dostupný zoznam."]
[null,"● ","Ak chcete zobraziť všetky faktúry pre konkrétneho zákazníka a konkrétne projekty, postupujte takto: Začnite filtrovaním požadovaného zákazníka podľa krokov uvedených v predchádzajúcom príklade. Potom kliknite na rozbaľovaciu šípku napravo od položky Č. projektu. Na table Filter vyberte požadovaný projekt alebo projekty a potom vyberte tlačidlo OK. "]
[null,"● ","Ak chcete zobraziť všetky faktúry za predchádzajúci mesiac, postupujte takto: V hárku Faktúry – hlavné, napravo od poľa Dátum fakturácie, vyberte rozbaľovaciu šípku, ukážte na položku Filtre dátumu a potom vyberte možnosť Minulý mesiac."]
[null,"● ","Ak chcete zobraziť všetkých zákazníkov s rovnakým kódom oblasti, postupujte takto: V hárku Zákazníci, napravo od poľa Telefón, vyberte rozbaľovaciu šípku. Na table Filter kliknite do textového poľa Hľadať, zadajte kód oblasti a potom vyberte tlačidlo OK. "]
[null,"Tipy na filtrovanie"]
[null,"● ","Ak tabuľka obsahuje riadok súčtu, napríklad Zákazníci a Faktúry, vypočítavané súčty budú odrážať len filtrovaný zoznam."]
[null,"● ","Ak chcete doladiť výsledky, použite viacero filtrov v jednom poli alebo vo viacerých poliach."]
[null,"● ","Ak chcete vymazať jeden filter, kliknite na rozbaľovaciu šípku pre predtým filtrovaný stĺpec a potom vyberte položku Vymazať filter od <názov poľa>."]
[null,"● ","Ak chcete naraz vymazať viaceré filtre, umiestnite ukazovateľ bunky do tabuľky, na karte Domov v skupine Úpravy vyberte položku Zoradiť a filtrovať a potom vyberte položku Vymazať."]